[Event "WYCC 2018 G14"]
[Site "Halkidiki"]
[Date "2018.10.20"]
[Round "1"]
[White "Djordjevic, Nevena"]
[Black "Wen, Yili"]
[Result "0-1"]
[ECO "A46"]
[WhiteElo "1704"]
[BlackElo "2083"]
[Annotator "NA"]
[PlyCount "90"]
[EventDate "2018.10.20"]
[EventType "swiss"]
[EventCountry "GRE"]
[SourceTitle "playchess.com"]
[Source "ChessBase"]
[SourceQuality "1"]
[TimeControl "40/5400+30:1800+30"]

1. d4 {[%emt 0:00:00]} Nf6 {[%emt 0:00:00]} 2. Nf3 {[%emt 0:00:00]} e6 {[%emt 0:00:12]} 3. e3 {[%emt 0:00:02]} b6 {[%emt 0:01:00]} 4. Bd3 {[%emt 0:00:20]} Bb7 {[%emt 0:00:06]} 5. O-O {[%emt 0:00:22]} d5 {[%emt 0:01:28]} 6. b3 {[%emt 0:02:23]} Be7 {[%emt 0:00:32]} 7. c4 {[%emt 0:01:46]} dxc4 {[%emt 0:09:43]} 8. bxc4 {[%emt 0:01:56]} O-O {[%emt 0:00:30]} 9. Nc3 {[%emt 0:07:08]} c5 {[%emt 0:00:51]} 10. Bb2 {[%emt 0:07:49]} cxd4 $11 {[%emt 0:01:27]} 11. exd4 {[%emt 0:00:39]} Nc6 {[%emt 0:00:15]} 12. Qe2 {[%emt 0:17:30]} Rc8 {[%emt 0:20:44]} 13. Rfd1 {[%emt 0:13:21]} Nb4 {[%emt 0:20:22]} 14. Bb1 {[%emt 0:07:39]} Bxf3 {[%emt 0:03:19]} 15. gxf3 {[%emt 0:13:47]} Bd6 {[%emt 0:03:09]} 16. a3 {[%emt 0:03:19]} Nc6 {[%emt 0:02:43]} 17. Ne4 {[%emt 0:09:13]} Nxe4 {[%emt 0:00:18]} 18. fxe4 {[%emt 0:00:50]} Qg5+ {[%emt 0:00:17]} 19. Kh1 {[%emt 0:02:56]} Bf4 {[%emt 0:00:51]} 20. Rg1 Qh6 21. Rg2 {[%emt 0:01:31]} Rfd8 {[%emt 0:05:57]} 22. d5 {[%emt 0:02:58]} Ne5 {[%emt 0:00:04]} 23. Ba2 {[%emt 0:00:55]} Ng6 {[%emt 0:10:09]} 24. Rag1 {[%emt 0:01:34]} e5 {[%emt 0:00:12]} 25. Qg4 {[%emt 0:01:01]} Kh8 {[%emt 0:04:00]} 26. h4 {[%emt 0:02:10]} Qxh4+ {[%emt 0:04:27]} 27. Qxh4 {[%emt 0:00:06]} Nxh4 {[%emt 0:00:05]} 28. Rxg7 {[%emt 0:00:12]} Rd7 {[%emt 0:00:24]} 29. R7g4 {[%emt 0:01:50]} Ng6 {[%emt 0:00:14]} 30. Rd1 {[%emt 0:00:45]} Kg8 {[%emt 0:02:11]} 31. Rgg1 {[%emt 0:00:43]} b5 {[%emt 0:00:40]} 32. Bc1 {[%emt 0:00:39]} bxc4 {[%emt 0:01:00]} 33. Bxf4 {[%emt 0:00:08]} exf4 {[%emt 0:00:03]} 34. Rc1 {[%emt 0:00:51]} c3 {[%emt 0:00:44]} 35. e5 {[%emt 0:00:30]} Kf8 {[%emt 0:00:48]} 36. Rge1 {[%emt 0:00:28]} Rb7 {[%emt 0:00:59]} 37. Re2 {[%emt 0:00:31]} f3 {[%emt 0:00:32]} 38. Rec2 {[%emt 0:00:31]} Nxe5 {[%emt 0:00:29]} 39. Rxc3 {[%emt 0:00:14]} Rxc3 {[%emt 0:00:04]} 40. Rxc3 {[%emt 0:00:00]} Rb2 {[%emt 0:00:00]} 41. Bb3 {[%emt 0:05:36]} Rxf2 {[%emt 0:01:53]} 42. Kg1 {[%emt 0:01:00]} Ng4 {[%emt 0:03:15]} 43. Bd1 {[%emt 0:00:33]} Rg2+ {[%emt 0:00:40]} 44. Kf1 {[%emt 0:03:15]} Nh2+ {[%emt 0:00:13]} 45. Ke1 {[%emt 0:00:08]} f2+ {[%emt 0:00:10]} 0-1

[Event "WYCC 2018 G14"]
[Site "Halkidiki"]
[Date "2018.10.20"]
[Round "1"]
[White "Ruzic, Pia Marie"]
[Black "Dylag, Emilia"]
[Result "0-1"]
[ECO "A29"]
[WhiteElo "1691"]
[BlackElo "2059"]
[Annotator "NA"]
[PlyCount "100"]
[EventDate "2018.10.20"]
[EventType "swiss"]
[EventCountry "GRE"]
[SourceTitle "playchess.com"]
[Source "ChessBase"]
[SourceQuality "1"]
[TimeControl "40/5400+30:1800+30"]

1. c4 {[%emt 0:00:00]} e5 {[%emt 0:00:00]} 2. Nc3 {[%emt 0:00:03]} Nf6 {[%emt 0:00:00]} 3. Nf3 {[%emt 0:00:40]} Nc6 {[%emt 0:00:16]} 4. g3 {[%emt 0:01:20]} d5 {[%emt 0:00:29]} 5. cxd5 {[%emt 0:00:50]} Nxd5 {[%emt 0:00:08]} 6. Bg2 {[%emt 0:00:39]} Nde7 {[%emt 0:00:40]} 7. O-O {[%emt 0:03:13]} g6 {[%emt 0:00:37]} 8. d3 {[%emt 0:06:33]} Bg7 {[%emt 0:00:35]} 9. a3 {[%emt 0:02:44] A29: English Opening: Four Knights Variation with 4 g3} (9. Rb1 a5 10. a3 O-O 11. b4 axb4 12. axb4 Nd4 13. Nd2 c6 14. e3 Ne6 15. Qc2 Nd5 16. b5 Nxc3 17. Qxc3 e4 18. d4 c5 19. Nxe4 cxd4 {1-0 (49) Almasi,Z (2692)-Bartel,M (2641) Budapest 2014}) 9... O-O {[%emt 0:01:24]} 10. Qc2 {[%emt 0:04:13]} h6 {[%emt 0:02:43]} 11. b4 {[%emt 0:04:14]} a6 $146 {[%emt 0:03:26]} ({Predecessor:} 11... a5 12. Rb1 axb4 13. axb4 {0-1 (52) Vukovic,I (2031)-Boguszlavszkij,J (2170) Balatonlelle 2018}) 12. Bb2 {[%emt 0:03:15]} Nf5 {[%emt 0:10:32]} 13. Rac1 {[%emt 0:06:58]} Nfd4 {[%emt 0:07:30]} 14. Nxd4 {[%emt 0:01:19]} Nxd4 {[%emt 0:00:06]} 15. Qd1 {[%emt 0:00:14]} c6 {[%emt 0:04:14]} 16. e4 {[%emt 0:10:09]} Be6 {[%emt 0:03:15]} 17. Ne2 {[%emt 0:01:24]} Nxe2+ {[%emt 0:06:04]} 18. Qxe2 {[%emt 0:00:07]} Qd6 {[%emt 0:02:02]} 19. Rfe1 {[%emt 0:02:44]} Rfd8 {[%emt 0:01:14]} 20. Bf1 {[%emt 0:00:26]} h5 {[%emt 0:02:04]} 21. Qe3 {[%emt 0:07:25]} a5 {[%emt 0:08:46]} 22. Bc3 {[%emt 0:14:36]} Rd7 {[%emt 0:12:24]} 23. bxa5 {[%emt 0:05:24]} Qxa3 {[%emt 0:00:54]} 24. Qd2 {[%emt 0:00:59]} Qf8 {[%emt 0:04:30]} 25. Rb1 {[%emt 0:01:41]} Qd8 {[%emt 0:05:28]} 26. Qb2 {[%emt 0:01:08]} f6 {[%emt 0:02:04]} 27. Qb6 {[%emt 0:02:23]} Bf8 {[%emt 0:04:02]} 28. Qxd8 {[%emt 0:03:16]} Raxd8 {[%emt 0:00:09]} 29. Rec1 {[%emt 0:00:58]} h4 {[%emt 0:05:44]} 30. Rc2 {[%emt 0:02:01]} hxg3 {[%emt 0:01:32]} 31. hxg3 {[%emt 0:03:35]} Rh7 {[%emt 0:02:27]} 32. Rcb2 {[%emt 0:03:49]} Bc8 {[%emt 0:01:34]} 33. Bb4 {[%emt 0:00:27]} Bxb4 {[%emt 0:04:33]} 34. Rxb4 {[%emt 0:00:09]} Re7 {[%emt 0:01:42]} 35. R4b3 {[%emt 0:04:20]} Rd4 {[%emt 0:00:50]} 36. Rb4 {[%emt 0:00:23]} Rc7 {[%emt 0:01:46]} 37. Be2 {[%emt 0:02:40]} Kf8 {[%emt 0:00:35]} 38. Rxd4 {[%emt 0:00:56]} exd4 {[%emt 0:00:05]} 39. Rb4 {[%emt 0:00:35]} c5 {[%emt 0:00:10]} 40. Rb6 {[%emt 0:00:00]} Kf7 {[%emt 0:00:00]} 41. f4 {[%emt 0:03:42]} Be6 {[%emt 0:09:43]} 42. Kf2 {[%emt 0:01:40]} Ke7 {[%emt 0:12:33]} 43. Kf3 {[%emt 0:04:51]} Rd7 $14 {[%emt 0:03:01]} 44. g4 {[%emt 0:12:13]} c4 {[%emt 0:02:12]} 45. f5 {[%emt 0:03:04]} gxf5 {[%emt 0:00:18]} 46. gxf5 {[%emt 0:00:07]} Bf7 {[%emt 0:00:22]} 47. dxc4 {[%emt 0:02:43]} d3 {[%emt 0:00:17]} 48. Bxd3 {[%emt 0:02:46]} Rxd3+ {[%emt 0:00:06]} 49. Ke2 {[%emt 0:00:03]} Bxc4 {[%emt 0:03:09]} 50. Rxb7+ {[%emt 0:00:26]} Rd7+ {[%emt 0:00:05]} 0-1

[Event "WYCC 2018 G14"]
[Site "Halkidiki"]
[Date "2018.10.20"]
[Round "1"]
[White "He, Emma"]
[Black "Mehmed, Elif"]
[Result "0-1"]
[ECO "B50"]
[WhiteElo "1674"]
[BlackElo "2049"]
[Annotator "NA"]
[PlyCount "104"]
[EventDate "2018.10.20"]
[EventType "swiss"]
[EventCountry "GRE"]
[SourceTitle "playchess.com"]
[Source "ChessBase"]
[SourceQuality "1"]
[TimeControl "40/5400+30:1800+30"]

1. e4 {[%emt 0:00:00]} c5 {[%emt 0:00:00]} 2. Nf3 {[%emt 0:00:00]} d6 {[%emt 0:00:00]} 3. c3 {[%emt 0:00:00]} Nf6 {[%emt 0:00:18]} 4. h3 {[%emt 0:00:11]} Bd7 {[%emt 0:00:13]} 5. Bd3 {[%emt 0:01:57] B50: Sicilian: 2...d6, Miscellaneous} (5. Qc2 Bc6 6. d3 Nbd7 7. Nbd2 g6 8. d4 cxd4 9. Nxd4 Bg7 10. Be2 O-O 11. O-O Nc5 12. Nxc6 bxc6 {½-½ (68) Svidler,P (2726)-Movsesian,S (2747) Odessa 2009}) 5... Bc6 {[%emt 0:00:11]} 6. Qe2 {[%emt 0:02:43]} Nh5 {[%emt 0:00:14]} 7. Bc2 {[%emt 0:03:31]} Nf4 {[%emt 0:00:30]} 8. Qf1 {[%emt 0:01:07]} d5 {[%emt 0:02:15]} 9. Ne5 $146 {[%emt 0:12:26]} ({Predecessor:} 9. d3 dxe4 10. dxe4 Qc7 11. Be3 Nd7 12. Nbd2 g6 {1-0 (34) Vysochin,S (2536)-Golichenko,I (2433) Kiev 2013}) 9... dxe4 {[%emt 0:09:10]} 10. Nxc6 {[%emt 0:04:48]} Nxc6 {[%emt 0:02:06]} 11. Bxe4 {[%emt 0:02:12]} Qc7 {[%emt 0:04:37]} 12. d3 {[%emt 0:08:04]} Ng6 {[%emt 0:03:13]} 13. Be3 {[%emt 0:03:12]} e6 {[%emt 0:01:35]} 14. Na3 {[%emt 0:08:42]} a6 {[%emt 0:01:20]} 15. Nc2 {[%emt 0:03:16]} Bd6 {[%emt 0:06:21]} 16. d4 {[%emt 0:06:24]} cxd4 {[%emt 0:02:01]} 17. Nxd4 {[%emt 0:00:35]} Nxd4 {[%emt 0:01:28]} 18. Bxd4 {[%emt 0:01:03]} f5 {[%emt 0:03:09]} 19. Bc2 {[%emt 0:03:00]} e5 {[%emt 0:07:00]} 20. Be3 {[%emt 0:00:40]} O-O {[%emt 0:06:57]} 21. O-O-O {[%emt 0:07:57]} Rad8 {[%emt 0:08:40]} 22. h4 {[%emt 0:04:00]} b5 {[%emt 0:06:12]} 23. h5 {[%emt 0:01:37]} Ne7 {[%emt 0:00:07]} 24. g4 {[%emt 0:05:55]} e4 {[%emt 0:17:05]} 25. Rg1 {[%emt 0:04:43]} Bf4 {[%emt 0:06:57]} 26. Kb1 {[%emt 0:02:00]} Bxe3 {[%emt 0:02:02]} 27. fxe3 {[%emt 0:00:11]} fxg4 {[%emt 0:02:43]} 28. Qe2 {[%emt 0:00:56]} Rxd1+ {[%emt 0:03:05]} 29. Qxd1 {[%emt 0:01:08]} Nf5 {[%emt 0:01:17]} 30. Qxg4 {[%emt 0:03:16]} Nxe3 {[%emt 0:00:36]} 31. Bb3+ {[%emt 0:01:31]} Kh8 {[%emt 0:01:17]} 32. Qxe4 {[%emt 0:01:16]} Nc4 {[%emt 0:02:31]} 33. Bxc4 {[%emt 0:02:52]} Qxc4 {[%emt 0:00:21]} 34. Qxc4 {[%emt 0:03:27]} bxc4 {[%emt 0:00:01]} 35. Re1 {[%emt 0:00:50]} Kg8 {[%emt 0:00:27]} 36. Re4 {[%emt 0:01:52]} Rf1+ {[%emt 0:00:15]} 37. Kc2 {[%emt 0:00:08]} Rf2+ {[%emt 0:00:04]} 38. Kc1 {[%emt 0:00:24]} Rh2 {[%emt 0:00:03]} 39. Rxc4 {[%emt 0:00:37]} Rxh5 {[%emt 0:00:03]} 40. Kc2 {[%emt 0:00:00]} Re5 {[%emt 0:00:00]} 41. Kd3 {[%emt 0:08:58]} g5 {[%emt 0:03:44]} 42. Re4 {[%emt 0:02:37]} Rf5 {[%emt 0:03:17]} 43. b4 {[%emt 0:03:32]} h5 {[%emt 0:02:27]} 44. c4 {[%emt 0:01:00]} g4 {[%emt 0:00:36]} 45. c5 {[%emt 0:01:17]} g3 {[%emt 0:00:23]} 46. c6 {[%emt 0:04:44]} g2 $11 {[%emt 0:01:52]} 47. c7 {[%emt 0:04:33]} Rf8 {[%emt 0:00:05]} 48. Re1 {[%emt 0:00:48]} h4 {[%emt 0:00:08]} 49. Rg1 {[%emt 0:06:34]} h3 {[%emt 0:00:08]} 50. Ke3 {[%emt 0:01:46]} Kh7 {[%emt 0:00:08]} 51. c8=Q {[%emt 0:00:30]} Rxc8 {[%emt 0:00:06]} 52. Kf2 {[%emt 0:00:29]} h2 {[%emt 0:00:18]} 0-1

[Event "WYCC 2018 G14"]
[Site "Halkidiki"]
[Date "2018.10.20"]
[Round "1"]
[White "Kong, Sydney"]
[Black "Dhyana Patel"]
[Result "0-1"]
[ECO "B35"]
[WhiteElo "1659"]
[BlackElo "2002"]
[Annotator "NA"]
[PlyCount "136"]
[EventDate "2018.10.20"]
[EventType "swiss"]
[EventCountry "GRE"]
[SourceTitle "playchess.com"]
[Source "ChessBase"]
[SourceQuality "1"]
[TimeControl "40/5400+30:1800+30"]

1. e4 {[%emt 0:00:00]} c5 {[%emt 0:00:00]} 2. Nf3 {[%emt 0:00:00]} Nc6 {[%emt 0:00:05]} 3. d4 {[%emt 0:00:00]} cxd4 {[%emt 0:00:19]} 4. Nxd4 {[%emt 0:00:00]} g6 {[%emt 0:00:31]} 5. Nc3 {[%emt 0:00:07]} Bg7 {[%emt 0:00:27]} 6. Be3 {[%emt 0:00:12]} Nf6 {[%emt 0:00:36]} 7. Bc4 {[%emt 0:03:56]} O-O {[%emt 0:00:54]} 8. Bb3 {[%emt 0:04:35]} a5 {[%emt 0:01:02]} 9. f3 {[%emt 0:02:40]} d6 $14 {[%emt 0:06:08]} 10. Qd2 {[%emt 0:03:51]} Bd7 {[%emt 0:00:48]} 11. a3 {[%emt 0:05:38]} a4 {[%emt 0:01:57]} 12. Ba2 {[%emt 0:05:05]} Qa5 {[%emt 0:04:13]} 13. O-O {[%emt 0:05:32]} Rfd8 {[%emt 0:07:48]} 14. Qf2 {[%emt 0:04:11]} Rac8 {[%emt 0:01:40]} 15. Ndb5 {[%emt 0:03:39]} Rf8 {[%emt 0:03:00]} 16. Bb6 {[%emt 0:02:42]} Qa8 {[%emt 0:02:16]} 17. Rad1 {[%emt 0:05:55]} Ne5 {[%emt 0:09:45]} 18. Nc7 {[%emt 0:02:33]} Qb8 {[%emt 0:03:00]} 19. N3d5 {[%emt 0:01:57]} Nxd5 {[%emt 0:00:44]} 20. Nxd5 {[%emt 0:00:05]} Rfe8 {[%emt 0:04:27]} 21. Ba7 {[%emt 0:02:24]} Qa8 {[%emt 0:00:08]} 22. Bd4 {[%emt 0:02:05]} Qa6 {[%emt 0:07:27]} 23. Kh1 {[%emt 0:20:31]} Bb5 {[%emt 0:07:22]} 24. Rfe1 {[%emt 0:01:54]} Bc4 {[%emt 0:07:47]} 25. Bxc4 {[%emt 0:04:25]} Rxc4 {[%emt 0:02:18]} 26. Bb6 {[%emt 0:04:44]} Nd7 {[%emt 0:04:19]} 27. Bd4 {[%emt 0:01:46]} Ne5 {[%emt 0:05:29]} 28. Bb6 {[%emt 0:00:21]} Nd7 {[%emt 0:04:33]} 29. Bd4 {[%emt 0:00:04]} Qc6 {[%emt 0:03:37]} 30. Nb4 {[%emt 0:01:18]} Bxd4 {[%emt 0:02:04]} 31. Rxd4 {[%emt 0:00:14]} Qc5 {[%emt 0:00:14]} 32. Red1 {[%emt 0:01:14]} Ne5 {[%emt 0:03:56]} 33. Qd2 {[%emt 0:01:20]} b5 {[%emt 0:01:08]} 34. Rd5 {[%emt 0:01:02]} Qb6 {[%emt 0:00:33]} 35. b3 {[%emt 0:01:31]} Rc7 {[%emt 0:01:34]} 36. Qe2 {[%emt 0:00:50]} axb3 {[%emt 0:00:21]} 37. cxb3 {[%emt 0:01:21]} Rb8 {[%emt 0:03:15]} 38. R5d2 {[%emt 0:00:46]} Qa7 {[%emt 0:00:40]} 39. Ra1 {[%emt 0:00:40]} Rbc8 {[%emt 0:00:54]} 40. h4 {[%emt 0:00:00]} Rc1+ {[%emt 0:00:00]} 41. Rd1 {[%emt 0:02:35]} R1c5 {[%emt 0:01:38]} 42. f4 {[%emt 0:01:55]} Nd7 {[%emt 0:00:34]} 43. Nd5 {[%emt 0:00:48]} Nb6 {[%emt 0:00:14]} 44. b4 {[%emt 0:02:53]} Rc2 {[%emt 0:00:08]} 45. Qe3 {[%emt 0:01:51]} R2c6 {[%emt 0:01:09]} 46. f5 {[%emt 0:01:15]} Qb7 {[%emt 0:02:25]} 47. Qg5 {[%emt 0:02:34]} Nxd5 {[%emt 0:00:53]} 48. Rxd5 {[%emt 0:01:28]} Kg7 {[%emt 0:06:54]} 49. Rf1 {[%emt 0:01:32]} f6 {[%emt 0:00:29]} 50. Qf4 {[%emt 0:01:04]} Rc4 {[%emt 0:00:26]} 51. g4 {[%emt 0:02:15]} Qxd5 {[%emt 0:01:56]} 52. exd5 {[%emt 0:00:04]} Rxf4 {[%emt 0:00:07]} 53. Rxf4 {[%emt 0:00:02]} Rc3 {[%emt 0:00:14]} 54. Re4 {[%emt 0:01:42]} Kf7 {[%emt 0:00:37]} 55. Kg2 {[%emt 0:01:10]} Rxa3 {[%emt 0:00:12]} 56. Rd4 {[%emt 0:00:16]} gxf5 {[%emt 0:01:17]} 57. gxf5 {[%emt 0:00:03]} Re3 {[%emt 0:00:24]} 58. Kf2 {[%emt 0:01:41]} Re5 {[%emt 0:00:07]} 59. Kf3 {[%emt 0:01:19]} Rxf5+ {[%emt 0:00:07]} 60. Kg4 {[%emt 0:00:04]} Re5 {[%emt 0:00:24]} 61. Kf4 {[%emt 0:02:40]} Re1 {[%emt 0:00:57]} 62. Kg3 {[%emt 0:01:04]} f5 {[%emt 0:00:14]} 63. Kf4 {[%emt 0:02:35]} Kf6 {[%emt 0:00:08]} 64. Kg3 {[%emt 0:00:55]} Ke5 {[%emt 0:00:51]} 65. Rd2 {[%emt 0:00:32]} Re4 {[%emt 0:00:21]} 66. Rf2 {[%emt 0:01:37]} Rxb4 {[%emt 0:00:16]} 67. Re2+ {[%emt 0:00:11]} Re4 {[%emt 0:00:06]} 68. Rxe4+ {[%emt 0:00:09]} fxe4 {[%emt 0:00:11]} 0-1

[Event "WYCC 2018 G14"]
[Site "Halkidiki"]
[Date "2018.10.20"]
[Round "1"]
[White "Tien, Sophie"]
[Black "Kamalidenova, Meruert"]
[Result "0-1"]
[ECO "B51"]
[WhiteElo "1648"]
[BlackElo "1999"]
[Annotator "NA"]
[PlyCount "142"]
[EventDate "2018.10.20"]
[EventType "swiss"]
[EventCountry "GRE"]
[SourceTitle "playchess.com"]
[Source "ChessBase"]
[SourceQuality "1"]
[TimeControl "40/5400+30:1800+30"]

1. e4 {[%emt 0:00:00]} c5 {[%emt 0:00:00]} 2. Nf3 {[%emt 0:00:00]} d6 {[%emt 0:00:00]} 3. Bb5+ {[%emt 0:00:04]} Nd7 {[%emt 0:00:03]} 4. c3 {[%emt 0:01:03]} Ngf6 {[%emt 0:01:23]} 5. Qe2 {[%emt 0:00:27]} a6 {[%emt 0:01:16]} 6. Ba4 {[%emt 0:00:16]} g6 {[%emt 0:01:47]} 7. O-O {[%emt 0:01:39]} Bg7 {[%emt 0:00:57]} 8. d4 {[%emt 0:01:16]} b5 {[%emt 0:03:07]} 9. Bc2 {[%emt 0:00:12]} Nb6 {[%emt 0:01:24]} 10. Nbd2 {[%emt 0:02:57]} O-O {[%emt 0:02:24]} 11. Re1 {[%emt 0:02:39]} Qc7 {[%emt 0:01:45]} 12. Nf1 {[%emt 0:01:22]} Bb7 {[%emt 0:02:06]} 13. Ng3 {[%emt 0:05:59]} Rac8 {[%emt 0:01:43]} 14. Bd3 {[%emt 0:04:14]} Nfd7 {[%emt 0:03:44]} 15. Bd2 {[%emt 0:06:08]} Nb8 {[%emt 0:02:35]} 16. Rac1 {[%emt 0:04:18]} Rfd8 {[%emt 0:02:36]} 17. b3 {[%emt 0:04:43]} Nc6 {[%emt 0:04:10]} 18. d5 {[%emt 0:01:13]} Nb8 {[%emt 0:04:11]} 19. c4 {[%emt 0:02:22]} b4 {[%emt 0:01:57]} 20. Rc2 {[%emt 0:09:53]} N8d7 {[%emt 0:01:59]} 21. Bc1 {[%emt 0:03:55]} Rf8 {[%emt 0:04:17]} 22. Bb2 {[%emt 0:04:15]} Bxb2 {[%emt 0:01:48]} 23. Rxb2 {[%emt 0:00:11]} e6 {[%emt 0:00:28]} 24. Qd2 {[%emt 0:02:49]} e5 {[%emt 0:07:02]} 25. Qh6 {[%emt 0:05:51]} f6 {[%emt 0:01:25]} 26. h4 {[%emt 0:03:53]} Rf7 {[%emt 0:01:32]} 27. h5 {[%emt 0:07:34]} Nf8 {[%emt 0:01:32]} 28. Kf1 {[%emt 0:03:04]} Rd8 {[%emt 0:01:47]} 29. Ke2 {[%emt 0:02:50]} Bc8 {[%emt 0:01:41]} 30. Qe3 {[%emt 0:05:07]} a5 {[%emt 0:01:59]} 31. Rbb1 {[%emt 0:02:20]} a4 {[%emt 0:01:30]} 32. Rh1 {[%emt 0:02:07]} Bd7 {[%emt 0:04:13]} 33. hxg6 {[%emt 0:02:05]} hxg6 {[%emt 0:00:49]} 34. Rh6 {[%emt 0:01:04]} axb3 {[%emt 0:01:43]} 35. axb3 {[%emt 0:00:11]} Qa7 {[%emt 0:01:13]} 36. Rbh1 {[%emt 0:01:42]} Rg7 {[%emt 0:00:55]} 37. Nd2 {[%emt 0:00:57]} Ra8 {[%emt 0:02:14]} 38. f4 {[%emt 0:02:51]} Bg4+ {[%emt 0:02:28]} 39. Kf2 {[%emt 0:00:44]} Qa2 {[%emt 0:02:34]} 40. fxe5 {[%emt 0:00:00]} dxe5 {[%emt 0:00:00]} 41. R6h4 {[%emt 0:04:42]} Bd7 {[%emt 0:03:06]} 42. Rc1 {[%emt 0:04:46]} Qb2 {[%emt 0:02:25]} 43. Ne2 {[%emt 0:02:17]} Qa2 {[%emt 0:06:52]} 44. Rhh1 {[%emt 0:02:55]} Rh7 {[%emt 0:06:48]} 45. Rxh7 {[%emt 0:07:15]} Nxh7 {[%emt 0:01:55]} 46. Qh6 {[%emt 0:01:01]} Nf8 {[%emt 0:01:53]} 47. Bb1 {[%emt 0:00:39]} Qa3 {[%emt 0:04:26]} 48. Rc2 {[%emt 0:00:46]} Qa7 {[%emt 0:01:43]} 49. Ra2 {[%emt 0:01:23]} Qb7 {[%emt 0:01:56]} 50. Rxa8 {[%emt 0:00:32]} Qxa8 {[%emt 0:00:33]} 51. Qe3 {[%emt 0:00:16]} Qa5 {[%emt 0:00:46]} 52. Qf3 {[%emt 0:00:53]} Kg7 {[%emt 0:01:29]} 53. Nf1 {[%emt 0:03:02]} Nh7 {[%emt 0:02:01]} 54. Qd3 {[%emt 0:00:47]} Ng5 {[%emt 0:01:06]} 55. Ne3 {[%emt 0:00:24]} Nc8 {[%emt 0:00:40]} 56. Ng3 {[%emt 0:01:19]} Nd6 {[%emt 0:00:23]} 57. Nef1 {[%emt 0:01:18]} Qa1 {[%emt 0:01:25]} 58. Nd2 {[%emt 0:00:24]} Qb2 {[%emt 0:01:23]} 59. Kg1 {[%emt 0:01:47]} Qc1+ {[%emt 0:01:09]} 60. Kh2 {[%emt 0:00:47]} Ndf7 {[%emt 0:01:41]} 61. Qc2 {[%emt 0:02:12]} Qe1 {[%emt 0:01:52]} 62. Qd3 {[%emt 0:00:52]} Nh6 {[%emt 0:00:43]} 63. Ndf1 {[%emt 0:01:08]} Ng4+ {[%emt 0:00:59]} 64. Kg1 {[%emt 0:00:07]} Qf2+ {[%emt 0:01:17]} 65. Kh1 {[%emt 0:00:07]} Qb2 {[%emt 0:01:15]} 66. Qc2 {[%emt 0:00:51]} Qd4 {[%emt 0:00:51]} 67. Qd2 {[%emt 0:00:21]} Qa1 {[%emt 0:01:10]} 68. Qc2 {[%emt 0:02:22]} Bc8 {[%emt 0:02:17]} 69. Ne2 {[%emt 0:02:43]} Nxe4 {[%emt 0:01:07]} 70. Kg1 {[%emt 0:00:32]} Bf5 {[%emt 0:00:50]} 71. Qd1 {[%emt 0:01:07]} Nef2 0-1

[Event "WYCC 2018 G14"]
[Site "Halkidiki"]
[Date "2018.10.20"]
[Round "1"]
[White "Gregurkova, Nikola"]
[Black "Mrudul Dehankar"]
[Result "0-1"]
[ECO "B01"]
[WhiteElo "1627"]
[BlackElo "1996"]
[Annotator "NA"]
[PlyCount "74"]
[EventDate "2018.10.20"]
[EventType "swiss"]
[EventCountry "GRE"]
[SourceTitle "playchess.com"]
[Source "ChessBase"]
[SourceQuality "1"]
[TimeControl "40/5400+30:1800+30"]

1. e4 {[%emt 0:00:00]} d5 {[%emt 0:00:00]} 2. exd5 {[%emt 0:00:17]} Nf6 {[%emt 0:00:00]} 3. d4 {[%emt 0:02:01]} Bg4 {[%emt 0:00:03]} 4. Be2 {[%emt 0:02:11]} Bxe2 {[%emt 0:00:28]} 5. Qxe2 {[%emt 0:01:06]} Qxd5 {[%emt 0:00:15]} 6. Nf3 {[%emt 0:01:26]} e6 {[%emt 0:00:49]} 7. c4 {[%emt 0:01:39]} Bb4+ {[%emt 0:05:23]} 8. Bd2 {[%emt 0:01:27]} Bxd2+ {[%emt 0:01:34]} 9. Nbxd2 {[%emt 0:00:25]} Qf5 {[%emt 0:13:57]} 10. O-O {[%emt 0:07:26]} O-O {[%emt 0:10:01]} 11. Ne5 {[%emt 0:16:04]} Rd8 {[%emt 0:04:10]} 12. Ndf3 {[%emt 0:09:21]} Na6 {[%emt 0:04:19]} 13. Rac1 {[%emt 0:11:31]} h6 {[%emt 0:09:46]} 14. Rfd1 {[%emt 0:04:21]} c6 {[%emt 0:01:17]} 15. a3 {[%emt 0:03:54]} Nc7 {[%emt 0:05:02]} 16. Qe3 {[%emt 0:07:02]} Nce8 {[%emt 0:09:43]} 17. b4 {[%emt 0:06:10]} Nd6 {[%emt 0:03:53]} 18. Qb3 {[%emt 0:02:36]} g5 {[%emt 0:08:22]} 19. Qc2 {[%emt 0:06:38]} g4 {[%emt 0:07:39]} 20. Ne1 {[%emt 0:03:58]} Qg5 {[%emt 0:03:55]} 21. Qd2 {[%emt 0:03:30]} Qg7 {[%emt 0:02:25]} 22. f3 {[%emt 0:01:13]} Nf5 {[%emt 0:01:45]} 23. Qc3 {[%emt 0:02:17]} g3 {[%emt 0:02:20]} 24. h3 {[%emt 0:00:59]} Nh5 {[%emt 0:01:28]} 25. Nc2 {[%emt 0:01:42]} Nf4 {[%emt 0:01:39]} 26. Re1 {[%emt 0:01:11]} Rd6 {[%emt 0:01:13]} 27. Rcd1 {[%emt 0:00:54]} Rad8 {[%emt 0:00:56]} 28. a4 {[%emt 0:01:40]} f6 {[%emt 0:00:54]} 29. c5 {[%emt 0:00:49]} Rd5 {[%emt 0:00:35]} 30. Nc4 {[%emt 0:00:15]} e5 {[%emt 0:00:22]} 31. Qb2 {[%emt 0:00:45]} exd4 {[%emt 0:00:39]} 32. Rd2 {[%emt 0:00:31]} Qg5 {[%emt 0:00:30]} 33. Qc1 {[%emt 0:00:34]} d3 {[%emt 0:00:32]} 34. N2e3 {[%emt 0:00:30]} Nxe3 {[%emt 0:00:20]} 35. Nxe3 {[%emt 0:00:14]} Ne2+ {[%emt 0:00:35]} 36. Rexe2 {[%emt 0:00:35]} dxe2 {[%emt 0:00:08]} 37. Nxd5 {[%emt 0:00:26]} Rxd5 {[%emt 0:00:08]} 0-1

[Event "WYCC 2018 G14"]
[Site "Halkidiki"]
[Date "2018.10.20"]
[Round "1"]
[White "Kumar, Arya"]
[Black "Matus, Nastassja"]
[Result "1/2-1/2"]
[ECO "C01"]
[WhiteElo "1619"]
[BlackElo "1983"]
[Annotator "NA"]
[PlyCount "51"]
[EventDate "2018.10.20"]
[EventType "swiss"]
[EventCountry "GRE"]
[SourceTitle "playchess.com"]
[Source "ChessBase"]
[SourceQuality "1"]
[TimeControl "40/5400+30:1800+30"]

1. e4 {[%emt 0:00:00]} e6 {[%emt 0:00:00]} 2. d4 {[%emt 0:00:00]} d5 {[%emt 0:00:00]} 3. exd5 {[%emt 0:00:00]} exd5 {[%emt 0:00:00]} 4. Bd3 {[%emt 0:00:00]} Nf6 {[%emt 0:00:34]} 5. Nf3 {[%emt 0:00:00]} Bd6 {[%emt 0:01:05]} 6. O-O {[%emt 0:00:10]} O-O {[%emt 0:00:11]} 7. Bg5 {[%emt 0:00:14]} Bg4 {[%emt 0:02:33]} 8. Nbd2 {[%emt 0:00:27]} Nbd7 {[%emt 0:02:55]} 9. c3 {[%emt 0:00:17]} c6 {[%emt 0:02:01]} 10. Qc2 {[%emt 0:01:27]} h6 {[%emt 0:12:49]} 11. Bh4 {[%emt 0:02:19]} Qc7 {[%emt 0:00:50]} 12. Bg3 {[%emt 0:03:22]} Bxg3 {[%emt 0:02:18]} 13. hxg3 {[%emt 0:00:11]} Rfe8 {[%emt 0:02:02]} 14. Rfe1 {[%emt 0:03:16]} b6 {[%emt 0:05:59]} 15. Nf1 {[%emt 0:15:36]} c5 {[%emt 0:08:43]} 16. Ne3 {[%emt 0:06:36]} Be6 {[%emt 0:07:40]} 17. Bf5 {[%emt 0:08:41]} Bxf5 {[%emt 0:15:58]} 18. Qxf5 {[%emt 0:04:14]} Qd6 {[%emt 0:03:44]} 19. Rad1 {[%emt 0:07:01]} c4 {[%emt 0:06:20]} 20. Ng4 {[%emt 0:08:26]} Nxg4 {[%emt 0:03:02]} 21. Qxg4 {[%emt 0:00:11]} Nf6 {[%emt 0:00:36]} 22. Qf5 {[%emt 0:01:31]} b5 {[%emt 0:05:56]} 23. Re5 {[%emt 0:06:56]} Re7 {[%emt 0:06:27]} 24. Rde1 {[%emt 0:05:19]} Rae8 {[%emt 0:01:49]} 25. Qf4 {[%emt 0:12:34]} Qd7 {[%emt 0:02:56]} 26. Rxe7 {[%emt 0:05:21]} 1/2-1/2